bitfinex/quotes_SOLUSD_20240809
["timestamp","ask_amount","ask_price","bid_price","bid_amount"]
[1723174346307,6.6168,160.3,160.23,15.6025]
[1723174346535,32.8268,160.3,160.24,46.2478163]
[1723174347914,15.223,160.31,160.25,27.45777787]
[1723174348121,32.4475,160.32,160.27,6.2394]
[1723174348321,6.2379,160.31,160.28,45.0]
[1723174348514,6.2379,160.31,160.25,32.4499]
[1723174348730,6.2379,160.31,160.26,45.0]
[1723174350442,6.2379,160.31,160.27,1.24764528]
[1723174351233,6.2379,160.31,160.26,45.0]
[1723174351624,6.2379,160.31,160.26,46.24764635]
[1723174351825,6.2379,160.31,160.27,1.24764439]
[1723174352337,6.2379,160.31,160.26,45.0]
[1723174353218,6.2379,160.31,160.27,1.24764367]
[1723174353419,26.21,160.32,160.27,1.24764367]
[1723174353620,27.0289545,160.34,160.27,1.24764367]
[1723174354531,6.2371,160.33,160.27,7.48704367]
[1723174354846,6.2371,160.33,160.28,45.0]
[1723174355346,6.2371,160.33,160.29,1.2474797]
[1723174355528,26.21,160.32,160.26,15.5994]
[1723174356946,6.2385,160.3,160.26,15.5994]
[1723174357531,26.21,160.32,160.26,15.5994]
[1723174357532,6.2379,160.31,160.27,1.24770365]
[1723174357731,32.4475,160.32,160.27,1.24770365]
[1723174358039,32.4475,160.32,160.27,1.24767906]
[1723174358236,32.4475,160.32,160.27,52.48697906]
[1723174359524,32.4475,160.32,160.27,51.2393]
[1723174360245,27.0289545,160.34,160.28,1.24766114]
[1723174361236,27.0289545,160.34,160.3,6.2382]
[1723174361444,27.0289545,160.34,160.29,7.48605292]
[1723174362338,27.0289545,160.34,160.29,6.2386]
[1723174365456,0.8189545,160.34,160.31,15.5947]
[1723174365662,0.8189545,160.34,160.32,52.48463634]
[1723174365854,0.8189545,160.34,160.32,45.0]
[1723174366033,0.8189545,160.34,160.31,21.8326]
[1723174366360,0.8189545,160.34,160.32,46.24731394]
[1723174366660,0.8189545,160.34,160.32,45.0]
[1723174368061,0.8189545,160.34,160.29,6.2383]
[1723174368357,0.8189545,160.34,160.3,45.0]
[1723174368656,0.8189545,160.34,160.29,51.2383]
[1723174369047,0.8189545,160.34,160.3,6.2381]
[1723174371859,17.95,160.32,160.29,45.0]
[1723174372161,17.95,160.32,160.29,51.2385]
[1723174372334,17.95,160.32,160.29,6.2385]
[1723174374442,17.95,160.32,160.28,15.5976]
[1723174374443,17.95,160.32,160.28,21.8366]
[1723174375459,17.95,160.33,160.29,6.2385]
[1723174375759,7.0556545,160.34,160.29,6.2385]
[1723174375760,0.8189545,160.34,160.33,6.2371]
[1723174376447,0.8189545,160.34,160.31,33.5446]
[1723174376761,0.8189545,160.34,160.32,1.24732803]
[1723174377441,0.8189545,160.34,160.31,33.5446]
[1723174378071,0.8189545,160.34,160.32,6.2373]
[1723174378239,0.8189545,160.34,160.33,51.2371]
[1723174378562,0.8189545,160.34,160.33,69.1871]
[1723174380455,0.8189545,160.34,160.33,70.43414613]
[1723174380637,0.8189545,160.34,160.33,69.1871]
[1723174380837,0.8189545,160.34,160.33,70.43417665]
[1723174381064,0.8189545,160.34,160.33,69.1871]
[1723174385249,0.8189545,160.34,160.33,70.4341652]
[1723174385450,0.8189545,160.34,160.33,52.4841652]
[1723174385649,0.8189545,160.34,160.33,70.4341652]
[1723174386053,0.8189545,160.34,160.33,69.1871]
[1723174386268,0.8189545,160.34,160.33,70.43407961]
[1723174387462,0.8189545,160.34,160.33,70.43404638]
[1723174387676,0.8189545,160.34,160.33,89.1871]
[1723174388057,0.8189545,160.34,160.33,96.63902107]
[1723174388567,0.8189545,160.34,160.33,95.3922]
[1723174390291,3.9,160.35,160.34,21.8285]
[1723174390590,3.9,160.35,160.34,84.7785]
[1723174391364,3.9,160.35,160.34,66.8285]
[1723174391579,3.9,160.35,160.34,39.7785]
[1723174392991,3.9,160.35,160.34,84.7785]
[1723174393191,22.7330723,160.48,160.37,31.1763]
[1723174393486,22.7330723,160.48,160.45,17.95]
[1723174393487,16.2862,160.48,160.45,17.95]
[1723174393990,16.2862,160.48,160.44,17.95]
[1723174394160,22.5178,160.48,160.44,17.95]
[1723174394359,6.2317,160.47,160.43,17.95]
[1723174394863,16.2862,160.48,160.43,17.95]
[1723174394864,40.4675,160.48,160.43,17.95]
[1723174395182,22.5175,160.48,160.44,17.95]
[1723174395557,40.4675,160.48,160.44,17.95]
[1723174395785,16.2862,160.48,160.45,17.95]
[1723174395976,16.2862,160.48,160.45,24.1823]
[1723174396502,16.2862,160.48,160.45,17.95]
[1723174396891,24.9995545,160.5,160.46,17.95]
[1723174397090,7.0495545,160.5,160.46,17.95]
[1723174397388,0.8189545,160.5,160.46,17.95]
[1723174398290,0.8189545,160.5,160.46,24.182]
[1723174398495,0.8189545,160.5,160.49,24.1809]
[1723174399887,0.8189545,160.5,160.47,6.2315]
[1723174400083,0.8189545,160.5,160.49,17.95]
[1723174400398,0.8189545,160.5,160.49,25.42688328]
[1723174400614,0.8189545,160.5,160.49,17.95]
[1723174400765,0.8189545,160.5,160.47,6.2316]
[1723174400967,18.7689545,160.5,160.46,21.8112]
[1723174401570,0.8189545,160.5,160.47,6.2315]
[1723174401874,0.8189545,160.5,160.46,33.5292]
[1723174402058,18.7689545,160.5,160.46,15.5792]
[1723174402265,18.7689545,160.5,160.46,39.7612]
[1723174402464,0.8189545,160.5,160.46,39.7612]
[1723174402693,18.7689545,160.5,160.46,21.8112]
[1723174402967,18.7689545,160.5,160.46,15.5792]
[1723174403181,18.7689545,160.5,160.46,21.8111]
[1723174403378,18.7689545,160.5,160.46,39.7611]
[1723174403576,6.5136,160.46,160.36,17.95]
[1723174403782,6.5136,160.46,160.37,6.2353]
[1723174403783,17.95,160.41,160.37,6.2353]
[1723174404183,17.95,160.41,160.38,15.5879]
[1723174404562,6.2325,160.45,160.38,15.5879]
[1723174404772,17.95,160.42,160.39,6.2347]
[1723174405194,17.95,160.41,160.38,15.5879]
[1723174405491,17.95,160.4,160.38,15.5879]
[1723174405693,26.16,160.42,160.38,15.5879]
[1723174405890,26.16,160.42,160.38,21.8229]
[1723174406676,32.3936,160.42,160.38,15.5879]
[1723174406985,26.16,160.42,160.38,21.823]
[1723174407488,26.16,160.42,160.39,6.2345]
[1723174409172,4.80028435,160.5,160.41,15.585]
[1723174409485,4.80028435,160.5,160.42,6.2332]
[1723174409486,26.16,160.47,160.42,6.2332]
[1723174409997,32.3918,160.47,160.42,6.2332]
[1723174410311,26.16,160.47,160.43,6.2331]
[1723174410592,32.3916,160.47,160.42,6.2336]
[1723174411370,6.2329,160.44,160.38,15.5879]
[1723174411578,26.16,160.43,160.38,15.5879]
[1723174411774,26.16,160.43,160.39,6.2344]
[1723174411985,26.16,160.43,160.38,21.823]
[1723174412194,26.16,160.43,160.39,6.2346]
[1723174412879,26.16,160.41,160.36,6.2358]
[1723174413082,32.3943,160.41,160.36,6.2359]
[1723174413795,21.9435,160.48,160.37,15.588]
[1723174413971,26.16,160.43,160.37,15.588]
[1723174415497,26.16,160.43,160.39,15.5861]
[1723174415703,26.16,160.43,160.4,6.2343]
[1723174416277,32.3926,160.45,160.4,6.2343]
[1723174416880,6.233,160.44,160.39,21.8208]
[1723174417501,6.2332,160.43,160.39,15.5861]
[1723174417701,6.2336,160.42,160.37,6.2354]
[1723174417884,26.16,160.45,160.36,26.16]
[1723174418084,26.16,160.46,160.42,6.2336]
[1723174418987,6.2317,160.47,160.42,6.2336]
[1723174419197,32.3917,160.47,160.42,6.2336]
[1723174420608,26.16,160.45,160.39,15.5869]
[1723174420793,32.3925,160.45,160.39,15.5869]
[1723174421298,32.3925,160.45,160.4,6.234]
[1723174421473,6.2328,160.44,160.39,21.8216]
[1723174421679,26.16,160.43,160.38,6.2351]
[1723174421880,26.16,160.43,160.39,6.2347]
[1723174422079,26.16,160.43,160.38,6.2351]
[1723174422319,6.2336,160.42,160.37,6.2354]
[1723174422683,32.3941,160.41,160.36,15.5898]
[1723174423194,26.16,160.41,160.36,15.5898]
[1723174423705,26.16,160.41,160.36,21.8257]
[1723174424803,26.16,160.41,160.38,6.2351]
[1723174425488,26.16,160.41,160.36,21.8254]
[1723174425709,17.94,160.39,160.36,21.8254]
[1723174426412,17.94,160.4,160.37,6.2355]
[1723174427402,17.94,160.39,160.36,15.5898]
[1723174427608,17.94,160.37,160.33,17.94]
[1723174427818,17.94,160.36,160.33,6.2371]
[1723174428405,17.94,160.37,160.33,6.2371]
[1723174428593,17.94,160.36,160.33,6.2371]
[1723174429198,17.94,160.36,160.34,6.2367]
[1723174429406,17.94,160.36,160.32,21.8303]
[1723174429593,17.94,160.36,160.33,6.237]
[1723174429788,6.2353,160.38,160.33,6.237]
[1723174429789,26.17,160.37,160.33,6.237]
[1723174430693,32.4049,160.39,160.33,6.237]
[1723174430897,32.4049,160.39,160.33,7.48425512]
[1723174431095,32.4049,160.39,160.33,6.237]
[1723174431808,32.4049,160.39,160.34,6.2366]
[1723174432613,26.17,160.39,160.36,6.2356]
[1723174433121,26.17,160.39,160.35,21.8267]
[1723174434725,32.4048,160.39,160.34,6.2367]
[1723174435387,32.4048,160.39,160.33,6.2371]
[1723174435799,26.17,160.37,160.33,6.2371]
[1723174437403,26.17,160.37,160.33,6.2369]
[1723174437719,32.4056,160.37,160.32,15.5937]
[1723174437924,32.4056,160.37,160.32,21.831]
[1723174438219,26.17,160.35,160.32,15.5937]
[1723174438788,26.17,160.35,160.32,21.8312]
[1723174440337,26.17,160.34,160.3,6.2379]
[1723174440726,26.17,160.34,160.29,15.5965]
[1723174440907,26.17,160.34,160.3,45.0]
[1723174441701,26.17,160.34,160.3,51.2379]
[1723174442430,26.17,160.34,160.31,6.2379]
[1723174443120,26.17,160.36,160.32,6.2374]
[1723174444122,26.17,160.36,160.31,6.2378]
[1723174444304,32.4061,160.36,160.31,6.2378]
[1723174444707,26.17,160.34,160.3,51.2382]
[1723174445019,26.17,160.32,160.26,21.8389]
[1723174445195,26.17,160.32,160.26,15.5995]
[1723174445395,26.17,160.32,160.26,21.8393]
[1723174445699,26.17,160.3,160.26,21.8393]
[1723174446192,26.17,160.3,160.26,15.5995]
[1723174446413,15.8819,160.35,160.26,15.5995]
[1723174446414,26.17,160.28,160.26,15.5995]
[1723174447314,26.17,160.29,160.27,6.2393]
[1723174447504,26.17,160.29,160.26,15.5995]
[1723174447704,26.17,160.29,160.26,21.8393]
[1723174448191,26.17,160.27,160.22,15.6026]
[1723174448392,26.17,160.27,160.23,6.241]
[1723174448594,26.17,160.27,160.22,16.85054115]
[1723174449228,26.17,160.29,160.26,6.2398]
[1723174449595,26.17,160.29,160.25,21.8407]
[1723174450023,26.17,160.29,160.25,15.6005]
[1723174450317,32.4087,160.29,160.25,15.6005]
[1723174450524,26.17,160.29,160.25,21.8407]
[1723174451025,32.4088,160.29,160.23,6.2409]
[1723174451221,26.17,160.29,160.24,51.2406]
[1723174451527,26.17,160.29,160.25,6.2401]
[1723174451728,17.96,160.27,160.25,7.48799305]
[1723174451926,17.96,160.27,160.26,6.2398]
[1723174452142,6.479,160.34,160.29,6.2386]
[1723174452433,17.96,160.32,160.29,6.2386]
[1723174452926,17.96,160.31,160.29,6.2386]
[1723174454127,15.8819,160.35,160.3,6.2381]
[1723174454304,17.96,160.33,160.3,6.2381]
[1723174454506,15.8819,160.35,160.27,33.5583]
[1723174454507,17.96,160.32,160.29,6.2386]
[1723174454906,17.96,160.32,160.3,51.2382]
[1723174455351,17.96,160.33,160.3,51.2382]
[1723174455716,12.415,160.38,160.31,1.24742847]
[1723174455919,17.96,160.37,160.32,17.96]
[1723174456236,17.96,160.36,160.34,6.2367]
[1723174456402,17.96,160.36,160.33,7.48429718]
[1723174456926,17.96,160.34,160.31,6.2377]
[1723174457129,17.96,160.33,160.3,45.0]
[1723174458040,17.96,160.33,160.3,51.2381]
[1723174458206,17.96,160.33,160.3,52.4855552]
[1723174458816,17.96,160.32,160.29,21.8351]
[1723174459122,17.96,160.3,160.25,21.8396]
[1723174459328,17.96,160.29,160.27,6.2393]
[1723174459527,17.96,160.29,160.26,6.2397]
[1723174459740,17.96,160.29,160.27,6.2393]
[1723174460134,17.96,160.29,160.25,15.5998]
[1723174460135,17.96,160.28,160.25,21.84]
[1723174460327,6.2379,160.31,160.26,6.2398]
[1723174460520,17.96,160.29,160.26,7.48759216]
[1723174460721,17.96,160.28,160.26,6.2398]
[1723174461249,17.96,160.28,160.25,15.5998]
[1723174461750,17.96,160.27,160.25,15.5998]
[1723174462617,17.96,160.26,160.25,15.5998]
[1723174463040,17.96,160.27,160.25,21.84]
[1723174463947,71.84,160.32,160.26,6.2398]
[1723174463948,17.96,160.28,160.26,6.2398]
[1723174464439,17.96,160.27,160.24,6.2403]
[1723174464858,17.96,160.26,160.23,6.241]
[1723174465150,17.96,160.26,160.24,6.2405]
[1723174465326,17.96,160.27,160.24,6.2405]
[1723174466720,17.96,160.26,160.24,6.2405]
[1723174467827,17.96,160.26,160.23,6.2409]
[1723174468042,17.96,160.24,160.21,15.6036]
[1723174468340,17.96,160.24,160.21,16.85178551]
[1723174469148,17.96,160.25,160.21,16.85178551]
[1723174469450,17.96,160.25,160.22,45.0]
[1723174469926,17.96,160.25,160.23,6.2408]
[1723174470128,17.96,160.25,160.22,52.48934287]
[1723174470645,17.96,160.25,160.22,51.2413]
[1723174470835,17.96,160.24,160.21,21.8453]
[1723174471342,17.96,160.25,160.22,51.2413]
[1723174471734,17.96,160.25,160.22,6.2413]
[1723174472140,17.96,160.24,160.22,6.2413]
[1723174472942,17.96,160.24,160.21,21.8453]
[1723174473749,17.96,160.24,160.22,6.2413]
[1723174474248,17.96,160.23,160.21,15.6036]
[1723174475155,17.96,160.22,160.18,21.8499]
[1723174475320,15.1301,160.28,160.18,15.6073]
[1723174475321,17.96,160.21,160.18,15.6073]
[1723174475525,17.96,160.21,160.19,51.2422]
[1723174476220,17.96,160.22,160.2,6.2421]
[1723174477948,6.2398,160.27,160.21,6.2414]
[1723174478148,17.96,160.23,160.21,6.2414]
[1723174479131,17.96,160.22,160.21,6.2414]
[1723174479336,17.96,160.23,160.21,6.2414]
[1723174479735,6.2395,160.27,160.21,6.2418]
[1723174480057,17.96,160.23,160.21,6.2418]
[1723174481658,17.96,160.24,160.21,6.2418]
[1723174482872,21.3695,160.28,160.22,17.96]
[1723174483158,21.3695,160.28,160.23,1.24808688]
[1723174483337,17.96,160.26,160.23,1.24808688]
[1723174483537,17.96,160.26,160.22,17.96]
[1723174483860,17.96,160.23,160.18,17.96]
[1723174484062,17.96,160.23,160.2,6.2419]
[1723174486042,17.96,160.22,160.19,6.2425]
[1723174488742,17.96,160.23,160.19,6.2425]
[1723174489062,17.96,160.23,160.2,6.242]
[1723174489453,17.96,160.22,160.2,6.242]
[1723174491435,17.96,160.23,160.2,6.242]
[1723174492976,6.2396,160.27,160.22,6.2414]
[1723174493173,21.3692,160.28,160.23,6.241]
[1723174493343,17.96,160.25,160.23,6.241]
[1723174493969,17.96,160.24,160.22,6.2414]
[1723174494476,21.3692,160.28,160.23,6.241]
[1723174494675,17.96,160.26,160.23,6.241]
[1723174494876,15.1301,160.28,160.24,6.2405]
[1723174495048,17.96,160.27,160.24,6.2405]
[1723174495658,17.96,160.27,160.23,6.2409]
[1723174495860,17.96,160.25,160.22,21.8441]
[1723174496066,17.96,160.24,160.22,15.6027]
[1723174496469,17.96,160.23,160.22,15.6027]
[1723174496671,17.96,160.23,160.2,6.2421]
[1723174497577,17.96,160.22,160.19,6.2425]
[1723174497788,17.96,160.22,160.2,6.2421]
[1723174498580,17.96,160.23,160.2,6.2421]
[1723174499175,17.96,160.22,160.19,6.2425]
[1723174499760,15.1301,160.28,160.2,15.6047]
[1723174500082,17.96,160.23,160.22,6.2413]
[1723174500278,17.96,160.23,160.18,6.2426]
[1723174500483,17.96,160.21,160.19,6.2425]
[1723174501303,17.96,160.2,160.17,15.6083]
[1723174501457,17.96,160.18,160.13,24.83875937]
[1723174501653,17.39956963,160.23,160.13,42.79875937]
[1723174501850,6.243,160.18,160.13,21.8564]
[1723174502055,6.243,160.18,160.13,21.8568]
[1723174502056,17.96,160.15,160.13,21.8568]
[1723174502477,17.96,160.14,160.08,31.16915937]
[1723174502657,17.96,160.14,160.09,15.6153]
[1723174502658,17.96,160.11,160.09,15.6153]
[1723174503280,17.96,160.11,160.09,21.8617]
[1723174503767,17.96,160.11,160.09,15.6153]
[1723174503963,17.96,160.1,160.07,6.2472]
[1723174504173,78.2331833,160.16,160.08,6.2468]
[1723174504358,17.96,160.1,160.08,6.2468]
[1723174504552,6.3931833,160.16,160.06,1.24938184]
[1723174504775,15.8385,160.17,160.1,17.96]
[1723174504986,17.96,160.15,160.1,17.96]
[1723174505454,17.96,160.15,160.11,1.24896511]
[1723174505656,6.39116768,160.21,160.12,15.3413]
[1723174505867,17.96,160.19,160.17,15.6083]
[1723174506076,17.96,160.19,160.13,46.24851061]
[1723174506077,17.96,160.19,160.15,6.2439]
[1723174506254,17.96,160.18,160.15,6.2439]
[1723174506457,17.96,160.17,160.14,6.2443]
[1723174506772,17.96,160.18,160.15,6.2441]
[1723174507197,17.96,160.17,160.15,6.2441]
[1723174507480,17.96,160.17,160.13,21.856]
[1723174507680,32.4729,160.18,160.13,21.856]
[1723174508467,32.4738,160.16,160.11,6.2456]
[1723174509367,1.56128235,160.21,160.1,6.246]
[1723174509368,26.23,160.14,160.1,6.246]
[1723174509568,26.23,160.12,160.09,15.6152]
[1723174509771,26.23,160.1,160.05,15.6193]
[1723174509976,26.23,160.1,160.06,6.2473]
[1723174512190,32.4761,160.1,160.05,15.6193]
[1723174512362,26.23,160.09,160.05,15.6193]
[1723174512561,26.23,160.09,160.02,6.1405]
[1723174512562,26.23,160.08,160.02,6.1405]
[1723174512769,32.4765,160.09,160.02,6.1405]
[1723174513092,26.23,160.09,160.05,6.248]
[1723174513580,26.23,160.09,160.04,21.8693]
[1723174513785,26.23,160.07,160.02,6.2488]
[1723174514186,26.23,160.08,160.03,15.6217]
[1723174514396,26.23,160.08,160.04,6.2483]
[1723174514564,26.23,160.09,160.04,6.2483]
[1723174514886,26.23,160.08,160.04,6.2483]
[1723174515263,26.23,160.09,160.04,6.2483]
[1723174515480,32.4761,160.1,160.05,6.2479]
[1723174515699,26.23,160.1,160.06,6.2476]
[1723174516395,32.4769,160.08,160.03,15.6217]
[1723174517197,6.2473,160.07,160.02,6.249]
[1723174517366,26.23,160.08,160.0,73.8498]
[1723174517367,26.23,160.08,160.04,6.2483]
[1723174518375,32.4769,160.08,160.02,48.102]
[1723174518880,6.2472,160.07,160.02,21.872]
[1723174520169,6.2478,160.06,160.0,42.6011]
[1723174520375,32.4778,160.06,159.98,47.992]
[1723174520584,6.2481,160.05,160.0,6.2499]
[1723174520909,26.23,160.06,159.98,47.992]
[1723174521067,32.4776,160.07,160.02,6.2492]
[1723174521269,26.23,160.07,160.02,6.2492]
[1723174521500,26.23,160.07,160.01,15.624]
[1723174521877,32.4772,160.07,160.01,15.624]
[1723174522078,26.23,160.07,160.02,6.2491]
[1723174522491,26.23,160.07,160.01,21.8735]
[1723174522683,26.23,160.06,160.01,15.624]
[1723174522909,32.4776,160.06,160.01,15.624]
[1723174523082,32.4784,160.04,159.98,12.3867]
[1723174523374,32.4784,160.04,159.98,7.38595939]
[1723174523573,32.4784,160.04,159.98,6.136]
[1723174524487,6.2488,160.03,159.98,6.136]
[1723174524679,32.4784,160.05,159.99,6.2502]
[1723174525090,32.4786,160.04,159.99,6.2502]
[1723174525411,32.4786,160.04,159.98,6.136]
[1723174525898,32.4786,160.04,159.99,6.2502]
[1723174526198,26.23,160.04,159.99,7.50012648]
[1723174526372,32.4787,160.04,159.98,12.3867]
[1723174526702,32.4787,160.04,159.97,15.6271]
[1723174526703,26.23,160.01,159.97,15.6271]
[1723174526914,26.23,160.01,159.96,21.4112]
[1723174527207,26.23,160.03,159.98,6.2504]
[1723174527393,32.4796,160.01,159.96,21.8793]
[1723174527709,6.25,160.0,159.96,15.628]
[1723174528089,26.23,160.01,159.96,21.8795]
[1723174528285,26.23,160.01,159.97,6.2511]
[1723174528490,26.23,160.01,159.96,15.628]
[1723174528703,32.4797,160.01,159.96,21.8795]
[1723174529586,26.23,160.01,159.96,21.8795]
[1723174530286,32.4797,160.01,159.96,21.8795]
[1723174530604,32.4797,160.01,159.96,21.8793]
[1723174531206,6.25,160.0,159.96,15.628]
[1723174531503,6.25,160.0,159.95,7.0708545]
[1723174531692,18.03,159.98,159.95,0.8189545]
[1723174532006,18.03,159.99,159.95,7.0706545]
[1723174532215,18.03,159.98,159.95,7.0706545]
[1723174532515,18.03,159.98,159.95,0.8189545]
[1723174532881,18.03,159.97,159.95,0.8189545]
[1723174533078,6.25,160.0,159.95,7.0707545]
[1723174533284,18.03,159.98,159.95,7.0707545]
[1723174533595,18.03,159.97,159.95,7.0707545]
[1723174534606,18.03,159.98,159.96,6.2515]
[1723174535717,18.03,159.98,159.95,7.0707545]
[1723174536402,6.25,160.0,159.95,7.0707545]
[1723174536602,18.03,159.98,159.95,7.0707545]
[1723174537522,6.25,160.0,159.95,7.0707545]
[1723174537523,24.2815,159.96,159.95,0.8189545]
[1723174537705,18.03,159.96,159.95,0.8189545]
[1723174540510,24.2815,159.96,159.95,0.8189545]
[1723174543922,18.03,159.96,159.87,21.8922]
[1723174544121,18.03,159.88,159.85,6.2554]
[1723174544324,18.03,159.87,159.84,15.6404]
[1723174545241,18.03,159.87,159.85,6.2558]
[1723174545470,18.03,159.87,159.84,21.8966]
[1723174545609,18.03,159.85,159.83,6.2565]
[1723174546014,18.03,159.86,159.83,6.2565]
[1723174546317,18.03,159.84,159.81,21.9007]
[1723174546519,18.03,159.84,159.81,15.6434]
[1723174546740,6.2538,159.91,159.85,6.2557]
[1723174547049,18.03,159.89,159.86,6.2553]
[1723174547247,18.03,159.89,159.84,39.9262]
[1723174547413,18.03,159.88,159.85,6.2558]
[1723174547618,15.8444,159.92,159.87,15.637]
[1723174547814,18.03,159.9,159.87,21.892]
[1723174548837,18.03,159.91,159.87,21.892]
[1723174549353,16.3422,159.96,159.87,21.892]
[1723174549544,18.03,159.9,159.87,21.892]
[1723174549754,18.03,159.91,159.87,21.892]
[1723174550134,18.03,159.91,159.87,15.637]
[1723174550351,18.03,159.9,159.87,15.637]
[1723174550739,18.03,159.9,159.85,24.2857]
[1723174551140,24.2835,159.91,159.86,24.2853]
[1723174551453,24.2835,159.91,159.87,1.2508529]
[1723174551652,18.03,159.89,159.84,18.03]
[1723174551829,18.03,159.89,159.85,45.0]
[1723174552032,18.03,159.89,159.85,51.2558]
[1723174552232,18.03,159.9,159.85,69.2858]
[1723174552562,6.2546,159.89,159.85,63.03]
[1723174552747,18.03,159.88,159.85,45.0]
[1723174552935,18.03,159.88,159.83,27.9711]
[1723174553132,18.03,159.86,159.81,6.2574]
[1723174553359,6.2548,159.88,159.83,6.2566]
[1723174553561,18.03,159.87,159.83,7.50783248]
[1723174553863,18.03,159.86,159.82,16.0835]
[1723174554044,18.03,159.85,159.81,7.50864703]
[1723174554250,18.03,159.85,159.81,6.2574]
[1723174555238,18.03,159.86,159.81,25.53872167]
[1723174555638,18.03,159.86,159.81,24.2874]
[1723174556160,15.6338,159.91,159.8,15.6444]
[1723174556161,18.03,159.84,159.8,15.6444]
[1723174556537,6.2571,159.82,159.79,6.8667545]
[1723174556866,24.2862,159.84,159.8,45.0]
[1723174557050,15.6371,159.88,159.8,45.0]
[1723174557051,6.2556,159.86,159.8,18.03]
[1723174557362,18.03,159.81,159.79,16.4640545]
[1723174557857,18.03,159.8,159.79,0.8189545]
[1723174559661,19.55735819,160.29,159.79,0.8189545]
[1723174559662,15.6346,159.91,159.79,0.8189545]
[1723174559858,20.0,159.88,159.8,1.25141933]
[1723174560067,26.34,159.85,159.81,15.643]
[1723174560234,26.34,159.84,159.79,0.8189545]
[1723174560439,32.5963,159.84,159.79,7.0767545]
[1723174560747,26.34,159.84,159.79,7.0767545]
[1723174560946,26.34,159.84,159.8,7.50902551]
[1723174561163,20.0,159.88,159.82,6.257]
[1723174561164,26.255,159.88,159.82,6.257]
[1723174561368,6.41922687,159.9,159.82,6.257]
[1723174561369,26.34,159.86,159.82,6.257]
[1723174561862,26.34,159.86,159.79,27.1589545]
[1723174561863,26.34,159.83,159.79,0.8189545]
[1723174562064,32.5968,159.83,159.79,0.8189545]
[1723174562246,26.34,159.83,159.79,0.8189545]
[1723174562440,26.34,159.83,159.79,7.0771545]
[1723174562769,6.2562,159.84,159.8,6.2578]
[1723174562770,26.34,159.84,159.8,6.2578]
[1723174563064,26.34,159.85,159.8,7.50916522]
[1723174563238,26.34,159.83,159.79,16.4643545]
[1723174563441,32.5966,159.84,159.79,16.4643545]
[1723174563673,6.2566,159.84,159.79,16.4643545]
[1723174563968,26.34,159.85,159.79,16.4643545]
[1723174565166,6.2568,159.83,159.79,16.4643545]
[1723174566754,26.34,159.83,159.79,0.8189545]
[1723174566948,6.2577,159.81,159.79,0.8189545]
[1723174567260,32.5977,159.81,159.79,0.8189545]
[1723174567648,6.2578,159.8,159.79,0.8189545]
[1723174567995,25.8778,159.81,159.79,0.8189545]
[1723174568762,32.1352,159.81,159.79,0.8189545]
[1723174568960,6.2574,159.81,159.79,0.8189545]
[1723174569261,32.5971,159.82,159.79,0.8189545]
[1723174569464,32.5978,159.81,159.79,0.8189545]